Cogmind - Beta 10 --- EXPLORER MODE // 2020.09.19 @ 23:37:09 Player: Soul Result: Self-destructed Performance ------------- Evolutions (1) 500 Regions Visited (2) 400 Robots Destroyed (16) 80 Value Destroyed (274) 274 Prototype IDs (0) 0 Alien Tech Used (0) 0 Bonus (0) 0 TOTAL SCORE: 1254 Bonus ------- None Cogmind --------- Core Integrity 382/400 Matter 300/300 Energy 250/250 System Corruption 0% Temperature Cool (0) Movement Walking (150) Ox1 Location -9/Materials Parts ------- > --- POWER (1) -------- Ion Engine > --- PROPULSION (2) --- Aluminum Leg Aluminum Leg > --- UTILITY (5) ------ Large Storage Unit Large Storage Unit Improved Sensor Array > --- WEAPON (2) ------- (None) > --- INVENTORY (16) --- Ion Engine Ion Engine Aluminum Leg Aluminum Leg Aluminum Leg Aluminum Leg VTOL Module EM Pulse Gun Small Laser Small Laser Light Assault Rifle Heavy Assault Rifle Datajack Mining Laser Peak State ------------ > --- POWER ------------ Ion Engine > --- PROPULSION ------- Aluminum Leg Aluminum Leg > --- UTILITY ---------- Large Storage Unit Large Storage Unit Improved Sensor Array > --- WEAPON ----------- EM Pulse Gun EM Pulse Gun > --- INVENTORY -------- Ion Engine Ion Engine Aluminum Leg Aluminum Leg Aluminum Leg Aluminum Leg VTOL Module EM Pulse Gun Small Laser Small Laser Light Assault Rifle Datajack Mining Laser [Rating: 10] Favorites ----------- Power Ion Engine Engine Ion Engine Propulsion Aluminum Leg Leg Aluminum Leg Utility Large Storage Unit Device Improved Sensor Array Storage Large Storage Unit Weapon EM Pulse Gun Energy Gun EM Pulse Gun Build | -11 -10 -9 ------- Run | Scr Mat Mat Slots Evolved 3 | . 1 2 Power . | . . . Propulsion . | . . . Utility 3 | . 1 2 Weapon . | . . . Parts Attached 9 | 6 2 1 Power 1 | 1 . . Engine 1 | 1 . . Core . | . . . Reactor . | . . . Propulsion 2 | 2 . . Treads . | . . . Leg 2 | 2 . . Wheel . | . . . Hover . | . . . Flight . | . . . Utility 4 | 1 2 1 Device 1 | . . 1 Storage 3 | 1 2 . Processor . | . . . Hackware . | . . . Protection . | . . . Artifact . | . . . Weapon 2 | 2 . . Energy Gun 2 | 2 . . Energy Cannon . | . . . Ballistic Gun . | . . . Ballistic Cannon . | . . . Launcher . | . . . Special Weapon . | . . . Impact Weapon . | . . . Slashing Weapon . | . . . Piercing Weapon . | . . . Special Melee Weapon . | . . . Unidentified Prototypes . | . . . Parts Lost 2 | . . 2 Power . | . . . Propulsion . | . . . Utility . | . . . Weapon 2 | . . 2 Highest Loss Streak 2 | . . 2 Average Slot Usage (%) 83 | . 86 74 Engine 11 | . 12 10 Leg 23 | . 25 20 Device 1 | . . 4 Storage 23 | . 24 20 Energy Gun 23 | . 25 20 Naked Turns . | . . . Heaviest Build 42 | 17 41 42 Greatest Support 20 | 20 20 20 Greatest Overweight (x) 2 | . 2 2 Average Overweight (x) 1 | . 1 2 Largest Inventory Capacity 16 | 8 16 16 Average Capacity 15 | 6 15 16 Most Carried 14 | 4 10 14 Average Carried 8 | 1 8 12 Final Capacity 16 | 8 16 16 Final Carried 14 | 1 10 14 Class Distribution -------------------- 100% | Hacker-Mutant Dominant Class ---------------- Hacker-Mutant | -10/Materials Hacker-Mutant | -9/Materials Resources | -11 -10 -9 ----------- Run | Scr Mat Mat Matter Collected 285 | 136 129 20 Remotely . | . . . Salvage Created 459 | . 325 134 Parts 36 | . 29 7 Haulers Intercepted 1 | . 1 . Recyclers Shooed . | . . . Parts Field Recycled . | . . . Retrieved Matter . | . . . Parts Self-Destructed . | . . . Prevented . | . . . Kills | -11 -10 -9 ------- Run | Scr Mat Mat Combat Hostiles Destroyed 8 | . 6 2 Guns 7 | . 5 2 AOE 1 | . 1 . Classes Destroyed 7 | . 6 1 Worker 1 | . 1 . Builder 2 | . 2 . Hauler 1 | . 1 . Watcher 4 | . 3 1 Swarmer 4 | . 4 . Grunt 3 | . 2 1 Sentry 1 | . . 1 Best Kill Streak 7 | . 7 2 Combat Bots Only 3 | . 3 1 Max Kills in Single Turn 2 | . 2 1 Gunslinging 1 | . 1 . Exploded 1 | . 1 . Melee . | . . . Uniques/NPCs Destroyed . | . . . Combat | -11 -10 -9 -------- Run | Scr Mat Mat Damage Taken 257 | . 129 128 Core 46 | . 28 18 Absorbed by Shields . | . . . Core Remaining (%) 94 | 100 88 . Volleys Fired 38 | . 29 9 Largest 2 | . 2 2 Hottest 80 | . 80 80 Shots Fired 76 | . 58 18 Gun 76 | . 58 18 Cannon . | . . . Launcher . | . . . Special . | . . . Kinetic . | . . . Thermal . | . . . Explosive . | . . . Electromagnetic 76 | . 58 18 Robot Hit Streak 22 | . 13 22 Robot Miss Streak 2 | . 2 . Penetration Max . | . . . Secondary Targets 1 | . 1 . Max Gunslinging Chain 1 | . 1 . Shots Hit Robots 58 | . 41 17 Core Hits 19 | . 15 4 Critical Hits . | . . . Critical Kills . | . . . Critical Parts Destroyed . | . . . Melee Attacks . | . . . Impact . | . . . Slashing . | . . . Piercing . | . . . Sneak Attacks . | . . . Combat Hostiles . | . . . Follow-up Attacks . | . . . Damage Inflicted 834 | . 594 240 Guns 650 | . 440 210 Cannons . | . . . Explosions 181 | . 151 30 Melee . | . . . Ramming 3 | . 3 . Kinetic . | . . . Thermal 181 | . 151 30 Explosive . | . . . Electromagnetic 650 | . 440 210 Impact . | . . . Slashing . | . . . Piercing . | . . . Highest Corruption . | . . . Average Corruption . | . . . Corruption Purged . | . . . Overload Shots . | . . . Overflow Damage 12 | . 12 . Projectiles . | . . . Explosions 12 | . 12 . Melee . | . . . Knockbacks . | . . . Impact . | . . . Kinetic . | . . . Secondary . | . . . Self-Inflicted Damage 21 | . 21 . Shots 1 | . 1 . Rammed 2 | . 2 . Targets Rammed 2 | . 2 . Kicked . | . . . Crushed . | . . . Highest Temperature 210 | . 210 63 Average Temperature 62 | . 71 28 Received Heat Transfer 114 | . 36 78 Siege Activations . | . . . Robots Corrupted . | . . . Combat Hostiles . | . . . Parts Fried 4 | . 3 1 Impact Corruptions . | . . . Robots Melted . | . . . Combat Hostiles . | . . . Parts Melted 3 | . 2 1 Heat Transferred 300 | . 250 50 Parts Sabotaged . | . . . Parts Stolen . | . . . Parts Stripped . | . . . Power Chain Reactions 4 | . 3 1 Missiles Intercepted . | . . . Alert | -11 -10 -9 ------- Run | Scr Mat Mat Peak Influence 204 | . 204 142 Initial . | . . . Average 52 | . 47 80 Maximum Alert Level 1 | . 1 . Low Security (%) 99 | 100 98 100 Level 1 . | . 1 . Level 2 . | . . . Level 3 . | . . . Level 4 . | . . . Level 5 . | . . . High Security . | . . . Max Security . | . . . Squads Dispatched 2 | . . 2 Investigation 2 | . . 2 Extermination . | . . . Reinforcement . | . . . Assault . | . . . Garrison . | . . . Intercept . | . . . Construction Impeded . | . . . Haulers Reinforced . | . . . Stealth | -11 -10 -9 --------- Run | Scr Mat Mat Distress Signals . | . . . Communications Jammed . | . . . Distress Signals . | . . . Times Spotted 18 | . 12 6 Peak Tracking Total 5 | . 5 4 Tactical Retreats 1 | . 1 . Traps | -11 -10 -9 ------- Run | Scr Mat Mat Traps Triggered 2 | . 2 . Indirectly . | . . . Trap Hack Attempts . | . . . Triggered . | . . . Disarmed 10 | . 10 . Reprogrammed . | . . . Reused . | . . . Traps Extracted . | . . . Installed . | . . . Triggered . | . . . Machines | -11 -10 -9 ---------- Run | Scr Mat Mat Machines Disabled 2 | . 2 . Max in Single Turn 1 | . 1 . Machines Sabotaged . | . . . Garrisons Compromised . | . . . Overloaded Fab Kills . | . . . Fab Network Shutdowns . | . . . Hacking | -11 -10 -9 --------- Run | Scr Mat Mat Machines Accessed 10 | . 7 3 Terminals 9 | . 7 2 Fabricators . | . . . Repair Stations . | . . . Recycling Units . | . . . Scanalyzers 1 | . . 1 Garrison Access . | . . . Total Hacks 33 | . 24 9 Successful 26 | . 22 4 Failed 7 | . 2 5 Catastrophic . | . . . Database Lockouts . | . . . Manual 34 | . 27 7 Terminals 32 | . 24 8 Fabricators . | . . . Repair Stations . | . . . Recycling Units . | . . . Scanalyzers 1 | . . 1 Garrison Access . | . . . Terminal Hacks 14 | . 12 2 Part Schematic 2 | . 2 . Robot Schematic 1 | . 1 . Level Access Points 1 | . 1 . Emergency Access Points 1 | . 1 . Machine Index 1 | . 1 . Terminal Index 1 | . . 1 Scanalyzer Index 1 | . . 1 Alert Level 1 | . 1 . Locate Traps 1 | . 1 . Disarm Traps 2 | . 2 . Surveillance Status 1 | . 1 . Zone Layout 1 | . 1 . Fabricator Hacks . | . . . Repair Station Hacks . | . . . Recycling Unit Hacks . | . . . Scanalyzer . | . . . Garrison Access Hacks . | . . . Unauthorized Hacks 12 | . 10 2 Terminals 11 | . 10 1 Track 1 | . 1 . Assimilate 2 | . 2 . Botnet 7 | . 6 1 Detonate 1 | . 1 . Fabricators . | . . . Repair Stations . | . . . Recycling Units . | . . . Scanalyzers 1 | . . 1 Extract 1 | . . 1 Garrison Access . | . . . Data Cores Recovered . | . . . Used . | . . . Hacking Detections 8 | . 6 2 Full Trace Events 1 | . . 1 Feedback Events . | . . . Feedback Blocked . | . . . Robot Schematics Acquired 1 | . 1 . Robots Built . | . . . Matter . | . . . Time . | . . . Total Robot Build Rating . | . . . Part Schematics Acquired 5 | . 2 3 Parts Built . | . . . Matter . | . . . Time . | . . . Total Part Build Rating . | . . . Parts Repaired . | . . . Time . | . . . Parts Recycled . | . . . Recycled Matter . | . . . Retrieved Matter . | . . . Retrieved Components . | . . . Parts Scanalyzed . | . . . Part Schematics Acquired . | . . . Parts Damaged . | . . . Bothacking | -11 -10 -9 ------------ Run | Scr Mat Mat Used RIF Installer . | . . . Robots Hacked . | . . . Non-combat . | . . . Combat . | . . . Robot Hacks Applied . | . . . Relay Couplers Released . | . . . Robots Rewired . | . . . Allies Hacked . | . . . Hacks Repelled . | . . . Allies | -11 -10 -9 -------- Run | Scr Mat Mat Total Allies . | . . . Largest Group . | . . . Highest-Rated Group . | . . . Highest-Rated Ally . | . . . Total Orders . | . . . Ally Attacks . | . . . Total Damage . | . . . Kills . | . . . Allies Corrupted . | . . . Allies Melted . | . . . Intel | -11 -10 -9 ------- Run | Scr Mat Mat Robot Analysis Total . | . . . Derelict Logs Recovered . | . . . Drone Launches . | . . . Drone Recoveries . | . . . Exploration | -11 -10 -9 ------------- Run | Scr Mat Mat Turns Passed 1362 | 49 1007 306 Spaces Moved 496 | 37 322 137 Core 12 | 12 . . Treads . | . . . Legs 484 | 25 322 137 Wheels . | . . . Hover . | . . . Flight . | . . . Fastest Speed 50 | 50 120 180 Average Speed 169 | 97 173 180 Slowest Speed 180 | 120 180 180 Overloaded Moves . | . . . Propulsion Burnouts . | . . . Robots Hopped . | . . . Cave-ins Triggered . | . . . Exploration Rate (%) 29 | 4 64 19 Regions Visited 2 Branch Regions . Pre-discovered Areas . | . . . Known Exits Taken 2 | 1 1 . Unknown Exits Taken . | . . . Scrap Searched . | . . . Spaces Dug . | . . . Terrain Destroyed 14 | . 8 6 Melee . | . . . Projectile . | . . . AOE 14 | . 8 6 Terrain Rammed . | . . . Walls Destroyed . | . . . Machines Disabled . | . . . Actions | -11 -10 -9 --------- Run | Scr Mat Mat Total 937 | 49 710 178 Wait 370 | . 344 26 Move 495 | 37 321 137 Hop . | . . . Pick Up 22 | 6 11 5 Fast Attach 1 | 1 . . Attach 8 | 5 2 1 Detach . | . . . Swap . | . . . Drop 1 | . 1 . Fire 38 | . 29 9 Melee . | . . . Ram . | . . . Kick 2 | . 2 . Crush . | . . . Escape Stasis . | . . . Rewire . | . . . Trap . | . . . Miscellaneous . | . . . Route ------- -11/Scrapyard -10/Materials (discovered 4 exits: *Mat x3 / *Min) -9/Materials History --------- Turn | Location | Event 6 | -11/Scrapyard | Identified exit to Materials 6 | -11/Scrapyard | Discovered exit to Materials (range 15) 50 | -11/Scrapyard | Entered Materials 50 | -10/Materials | Evolved 1 slot: Utility x1 56 | -10/Materials | Identified exit to Materials 305 | -10/Materials | Build established: Hacker-Mutant 393 | -10/Materials | Identified exit to Mines 393 | -10/Materials | Discovered exit to Mines (range 8) 1057 | -10/Materials | Entered another Materials area 1057 | -9/Materials | Evolved 2 slots: Utility x2 1363 | -9/Materials | Self-destructed Last Messages --------------- 01301_ U-05 Engineer lays Concrete. 01306_ K-01 Serf cleans the Terminal. 01311_ Connecting with Terminal... >>Trojan(Botnet) Trojan loaded successfully. Testing... Terminal linked with 0 systems. Awaiting botnet instructions. >>Index(Scanalyzers) Found 1 scanalyzer. Downloaded coordinate data. >>Index(Terminals) Found 12 terminals. Downloaded coordinate data. 01311_ Connecting with Terminal... 01316_ K-01 Serf cleans the Terminal. 01352_ Connecting with Terminal... 01352_ ALERT: Suspicious activity at Terminal M012. Dispatching Investigation squad. 01362_ EM Pulse Gun destroyed. Map ----- +----------------------------------------------------+ | ?????????????????????????????????????????????????? | | ?????????????????????????????????????????????????? | | ?????????????????????????????????????????????????? | | ?????????????????????????????????????????????????? | | ????????????????????????#+##?????????????????????? | | ???????????????????????? ?????????????????????? | | ???????????????????????? ?????????????????????? | | ??????????????????????? ?????????????????????? | | ??? ??????????????????? ?????????????????????? | | ?? ?????????????????? ?????????????????????? | | ??=* ??????????????????# #?????????????????????? | | ??== ??????????????????? ##+##?????????????????? | | ???= ??????????????????? ?###??????????????? | | ??? ??????????????????? ??????????????? | | ??? ??????????????????? Y #???????????????? | | ???#/?????????????????### """ #???????????????? | | ???# #????????????????#"" """ #???????????????? | | ??## ############?????#""Ya""" #???????????????? | | ??#" "## ! #?????#"T #???????????????? | | ??#"%"## "" #?????#"" #???????????????? | | ?##"!"## T" #?????#"" #???????????????? | | ## # "" ######### #???????????????? | | # ! ?/? !! + ??????????? | | + """ ######### !] #???????????????? | | # """ #???????# ! #???????????????? | | ## # """ #???????#@########???????????????? | | ### ## #???????# #??????????????????????? | | # ###########???????# #??????????????????????? | | # #?????????????????# #??????????????????????? | | # +?????????????????#g#??????????????????????? | | [# #?????????????????+ ??????????????????????? | | +% #?????????????????# #??????????????????????? | | # #?????????????????# #??????????????????????? | | !/# #?????????????????# #??????????????????????? | | ! # #?????????????????? ????##########?????????? | | # #?????????????????? ????# #?????????? | | # +?????????????????? #???# """ #?????????? | | # #?????????????????? #???# """ #?????????? | | + #?????????????????? #???# """ #?????????? | | ### #?????#+#?????????+ #???# #?????????? | | ####+#####??# #?????????# #???# "S #?????????? | | # #??# #?????????# ##### """ #?????????? | | # """"" #??# #?????????# ## "" #?????????? | | # """"" #??# #?????????# ## #?????????? | | # """"" #### ########### ######+######???????? | | # """"" + #???????? | | # """"" #### ###/##### #???????? | | #?""""" #??# # % ## #???????? | | ??""""" #??# + """ #####+#####??????? | | # #??############## """ !#% #??????? | +----------------------------------------------------+ Best States ------------- Heat Dissipation 28 Energy Generation 10 Energy Capacity 250 Matter Stores 300 Matter Capacity 300 Sight Range 16 Robot Scan Range 13 Terrain Scan Density 10 Resistance: KI 35 Resistance: TH 35 Resistance: EX 35 Resistance: EM 35 Resistance: I 35 Resistance: S 35 Resistance: P 35 Evasion (%) 50 Offensive Hacking 20 Item Schematics ----------------- Sensor Array | -10/Materials | Hacked Signal Interpreter | -10/Materials | Hacked Imp. Targeting Computer | -9/Materials | Extracted Imp. Treads | -9/Materials | Extracted EM Pulse Gun | -9/Materials | Extracted Robot Schematics ------------------ W-16 Scout | -10/Materials | Hacked Fabricated ------------ Nothing Alien Tech Used ----------------- None Achievements -------------- Brute Force Quantum Hacking root@ Challenges ------------ None Game ------ Seed BiometalMicroSlayer Manual? 0 Play Time 00:24:01 Cumulative 15.3 hours Start 2020.09.19 @ 23:01:00 End 2020.09.19 @ 23:37:09 Sessions 1 Manual Loads 0 Difficulty Explorer Special Mode None Game No. 28 Rogue 11 Adventurer 0 Explorer 17 Win Type - Total 0 Types 0/0/0/0/0/0/0/0/0 Lore% 9 Gallery% 22 Achievement% 19 Wizard Run 0 Options --------- ASCII 0 Keyboard 0 Movement Mouse Keybinds 0 Fullscreen 1 Font 18/TerminusBold Map View 76x50 Tactical HUD 1 Map Filters NONE Filters NONE Steam 1 RUN: 27899183-9d9b-46c0-bb8f-96f969a1de25